Body Name,Document Number,Service,Type of Expenditure,Invoice Date,Supplier Name,Cost to the Council (Amount Exc VAT),Month
EREWASH BOROUGH COUNCIL,28525,Planning                      ,Structural Property Works     ,22-Sep-2023,BAILY GARNER LLP                        ,"2,156.40",Oct-23
EREWASH BOROUGH COUNCIL,28334,Planning                      ,Structural Property Works     ,28-Sep-2023,GAGARIN STUDIO                          ,"9,100.00",Oct-23
EREWASH BOROUGH COUNCIL,28292,Planning                      ,External Property Works       ,26-Sep-2023,WATERMAN INFRASTRUCURE & ENVIRONMENT LTD,"8,295.00",Oct-23
EREWASH BOROUGH COUNCIL,28508,Planning                      ,External Property Works       ,18-Jul-2023,SURVEY HUB                              ,"2,970.00",Oct-23
EREWASH BOROUGH COUNCIL,28325,Planning                      ,External Property Works       ,29-Sep-2023,COREUS PROJECTS LTD                     ,"3,657.30",Oct-23
EREWASH BOROUGH COUNCIL,28334,Planning                      ,External Property Works       ,28-Sep-2023,GAGARIN STUDIO                          ,"3,800.00",Oct-23
EREWASH BOROUGH COUNCIL,28336,Planning                      ,External Property Works       ,30-Sep-2023,31 TEN CONSULTING LTD                   ,"1,000.00",Oct-23
EREWASH BOROUGH COUNCIL,28336,Planning                      ,External Property Works       ,30-Sep-2023,31 TEN CONSULTING LTD                   ,"1,000.00",Oct-23
EREWASH BOROUGH COUNCIL,28335,Planning                      ,External Property Works       ,25-Sep-2023,GATELEY HAMER LTD                       ,"6,221.40",Oct-23
EREWASH BOROUGH COUNCIL,28495,Operational Services          ,"Plant, Machinery and Equipment",13-Sep-2023,WHITESPACE WORK SOFTWARE LTD            ,"20,576.20",Oct-23
EREWASH BOROUGH COUNCIL,28320,Operational Services          ,"Plant, Machinery and Equipment",27-Sep-2023,WHITESPACE WORK SOFTWARE LTD            ,"1,648.00",Oct-23
EREWASH BOROUGH COUNCIL,28375,Operational Services          ,"Plant, Machinery and Equipment",30-Sep-2023,WHITESPACE WORK SOFTWARE LTD            ,"3,000.00",Oct-23
EREWASH BOROUGH COUNCIL,28496,Operational Services          ,"Plant, Machinery and Equipment",29-Sep-2023,WHITESPACE WORK SOFTWARE LTD            ,"12,900.00",Oct-23
EREWASH BOROUGH COUNCIL,28319,Operational Services          ,"Plant, Machinery and Equipment",27-Sep-2023,WHITESPACE WORK SOFTWARE LTD            ,"15,420.00",Oct-23
EREWASH BOROUGH COUNCIL,28556,Regulatory and Housing Service,Disabled Facilities Grant     ,20-Sep-2023,DERBYSHIRE COUNTY COUNCIL...            ,"2,355.00",Oct-23
EREWASH BOROUGH COUNCIL,28540,Regulatory and Housing Service,Disabled Facilities Grant     ,20-Sep-2023,DERBYSHIRE COUNTY COUNCIL...            ,"2,723.00",Oct-23
EREWASH BOROUGH COUNCIL,28558,Regulatory and Housing Service,Disabled Facilities Grant     ,20-Sep-2023,DERBYSHIRE COUNTY COUNCIL...            ,"4,878.00",Oct-23
EREWASH BOROUGH COUNCIL,28534,Regulatory and Housing Service,Disabled Facilities Grant     ,14-Sep-2023,DERBYSHIRE COUNTY COUNCIL...            ,"5,365.52",Oct-23
EREWASH BOROUGH COUNCIL,28538,Regulatory and Housing Service,Disabled Facilities Grant     ,14-Sep-2023,DERBYSHIRE COUNTY COUNCIL...            ,"6,023.78",Oct-23
EREWASH BOROUGH COUNCIL,28537,Regulatory and Housing Service,Disabled Facilities Grant     ,20-Sep-2023,DERBYSHIRE COUNTY COUNCIL...            ,"6,149.00",Oct-23
EREWASH BOROUGH COUNCIL,28539,Regulatory and Housing Service,Disabled Facilities Grant     ,14-Sep-2023,DERBYSHIRE COUNTY COUNCIL...            ,"6,336.48",Oct-23
EREWASH BOROUGH COUNCIL,28535,Regulatory and Housing Service,Disabled Facilities Grant     ,14-Sep-2023,DERBYSHIRE COUNTY COUNCIL...            ,"7,162.20",Oct-23
EREWASH BOROUGH COUNCIL,28536,Regulatory and Housing Service,Disabled Facilities Grant     ,20-Sep-2023,DERBYSHIRE COUNTY COUNCIL...            ,"7,558.00",Oct-23
EREWASH BOROUGH COUNCIL,28555,Regulatory and Housing Service,Disabled Facilities Grant     ,20-Apr-2023,DERBYSHIRE COUNTY COUNCIL...            ,"30,000.00",Oct-23
EREWASH BOROUGH COUNCIL,28943,Regulatory and Housing Service,Disabled Facilities Grant     ,20-Sep-2023,DERBYSHIRE COUNTY COUNCIL...            ,"3,365.00",Oct-23
EREWASH BOROUGH COUNCIL,28921,Regulatory and Housing Service,Disabled Facilities Grant     ,27-Sep-2023,DERBYSHIRE COUNTY COUNCIL...            ,"5,954.88",Oct-23
EREWASH BOROUGH COUNCIL,28700,Regulatory and Housing Service,Disabled Facilities Grant     ,14-Jun-2023,DERBYSHIRE COUNTY COUNCIL...            ,"2,454.00",Oct-23
EREWASH BOROUGH COUNCIL,28699,Regulatory and Housing Service,Disabled Facilities Grant     ,14-Jun-2023,DERBYSHIRE COUNTY COUNCIL...            ,"2,579.00",Oct-23
EREWASH BOROUGH COUNCIL,28698,Regulatory and Housing Service,Disabled Facilities Grant     ,14-Jun-2023,DERBYSHIRE COUNTY COUNCIL...            ,"2,897.37",Oct-23
EREWASH BOROUGH COUNCIL,28701,Regulatory and Housing Service,Disabled Facilities Grant     ,20-Sep-2023,DERBYSHIRE COUNTY COUNCIL...            ,"3,147.83",Oct-23
EREWASH BOROUGH COUNCIL,28708,Regulatory and Housing Service,Disabled Facilities Grant     ,20-Sep-2023,DERBYSHIRE COUNTY COUNCIL...            ,"6,412.00",Oct-23
EREWASH BOROUGH COUNCIL,18897,Regulatory and Housing Service,Disabled Facilities Grant     ,17-Nov-2022,DERBYSHIRE COUNTY COUNCIL...            ,"11,699.90",Oct-23
EREWASH BOROUGH COUNCIL,28257,Street Scene                  ,Vehicle Sweeper Brushes       ,28-Sep-2023,PROBRUSH                                ,"1,053.16",Oct-23
EREWASH BOROUGH COUNCIL,28343,Civic Transport               ,Hire Charges                  ,30-Sep-2023,PINNACLE EXECUTIVE CARS LIMITED         ,886.45,Oct-23
EREWASH BOROUGH COUNCIL,28710,Kerbside Recycling Collection ,General Equipment             ,12-Sep-2023,J & HM DICKSON LTD                      ,"10,404.80",Oct-23
EREWASH BOROUGH COUNCIL,28093,Revenues and Benefits         ,General Equipment             ,11-Sep-2023,REDACTIVE MEDIA GROUP                   ,990.00,Oct-23
EREWASH BOROUGH COUNCIL,28332,ICT Support Services          ,General Equipment             ,29-Sep-2023,CCS MEDIA LIMITED                       ,619.97,Oct-23
EREWASH BOROUGH COUNCIL,28019,Planning Policy               ,General Equipment             ,07-Sep-2023,N G INSTALLATIONS LYD                   ,378.72,Oct-23
EREWASH BOROUGH COUNCIL,28102,Elections                     ,General Equipment             ,20-Sep-2023,SHAW & SONS LTD                         ,693.80,Oct-23
EREWASH BOROUGH COUNCIL,27900,Elections                     ,General Equipment             ,18-Sep-2023,ASSOCIATION OF ELECTORAL ADMINISTRATORS ,742.50,Oct-23
EREWASH BOROUGH COUNCIL,27703,Green Space                   ,General Equipment             ,05-Sep-2023,ROLLIN TRANSPORT TRAINING               ,500.00,Oct-23
EREWASH BOROUGH COUNCIL,27703,Street Scene                  ,General Equipment             ,05-Sep-2023,ROLLIN TRANSPORT TRAINING               ,500.00,Oct-23
EREWASH BOROUGH COUNCIL,28890,Commissioned Projects         ,General Equipment             ,02-Sep-2023,ALL BEING WELL                          ,300.00,Oct-23
EREWASH BOROUGH COUNCIL,27863,Reprographics                 ,Equipment Leasing Charge      ,15-Sep-2023,KONICA MINOLTA BUSINESS SOLUTIONS (UK) L,297.47,Oct-23
EREWASH BOROUGH COUNCIL,27631,Reprographics                 ,Equipment Leasing Charge      ,07-Sep-2023,KONICA MINOLTA BUSINESS SOLUTIONS (UK) L,"1,014.93",Oct-23
EREWASH BOROUGH COUNCIL,27728,ICT Support Services          ,Equipment Leasing Charge      ,11-Sep-2023,RICOH UK LTD                            ,"4,159.62",Oct-23
EREWASH BOROUGH COUNCIL,28304,Food Inspection and Hygiene   ,Materials and Consumables     ,28-Sep-2023,JENSON PRESS PRINTERS                   ,395.00,Oct-23
EREWASH BOROUGH COUNCIL,28113,Green Space                   ,Materials and Consumables     ,25-Sep-2023,KRM BUILDING SUPPLIES LTD               ,400.11,Oct-23
EREWASH BOROUGH COUNCIL,28333,Green Space                   ,Materials and Consumables     ,02-Oct-2023,DERBYSHIRE LANDSKILLS                   ,"1,466.00",Oct-23
EREWASH BOROUGH COUNCIL,28323,Green Space                   ,Materials and Consumables     ,21-Sep-2023,C H SMITH (ENGRAVERS)                   ,772.92,Oct-23
EREWASH BOROUGH COUNCIL,27705,Green Space                   ,Materials and Consumables     ,05-Sep-2023,VITAX LTD                               ,530.15,Oct-23
EREWASH BOROUGH COUNCIL,28125,Green Space                   ,Materials and Consumables     ,26-Sep-2023,WARD RECYCLING                          ,269.63,Oct-23
EREWASH BOROUGH COUNCIL,28549,Green Space                   ,Materials and Consumables     ,27-Jun-2022,PRIDE FLOWERS                           ,"2,000.00",Oct-23
EREWASH BOROUGH COUNCIL,28372,Green Space                   ,Materials and Consumables     ,25-Sep-2023,MANSFIELD SAND COMPANY LTD              ,564.00,Oct-23
EREWASH BOROUGH COUNCIL,28637,Green Space                   ,Materials and Consumables     ,08-Oct-2023,EFFECTIVE SECURITY SERVICES LTD         ,"1,020.00",Oct-23
EREWASH BOROUGH COUNCIL,28105,Play Areas                    ,Materials and Consumables     ,22-Sep-2023,WICKSTEED LEISURE LTD                   ,512.56,Oct-23
EREWASH BOROUGH COUNCIL,27522,Play Areas                    ,Materials and Consumables     ,05-Sep-2023,PEEL ELECTRICAL LTD                     ,319.20,Oct-23
EREWASH BOROUGH COUNCIL,27869,Play Areas                    ,Materials and Consumables     ,15-Sep-2023,PLAYSAFETY LTD                          ,415.00,Oct-23
EREWASH BOROUGH COUNCIL,28012,Play Areas                    ,Materials and Consumables     ,12-Sep-2023,HAGSSMP                                 ,608.00,Oct-23
EREWASH BOROUGH COUNCIL,28518,Play Areas                    ,Materials and Consumables     ,25-Sep-2023,HAGSSMP                                 ,351.56,Oct-23
EREWASH BOROUGH COUNCIL,27901,Household Waste Collection    ,Bins                          ,15-Sep-2023,IPL PLASTICS (UK) LIMITED               ,"1,350.00",Oct-23
EREWASH BOROUGH COUNCIL,27703,Household Waste Collection    ,Bins                          ,05-Sep-2023,ROLLIN TRANSPORT TRAINING               ,745.00,Oct-23
EREWASH BOROUGH COUNCIL,27701,Household Waste Collection    ,Bins                          ,05-Sep-2023,PEEL ELECTRICAL LTD                     ,467.10,Oct-23
EREWASH BOROUGH COUNCIL,28000,Household Waste Collection    ,Bins                          ,12-Sep-2023,ARCO                                    ,332.80,Oct-23
EREWASH BOROUGH COUNCIL,28068,Registration of Electors      ,Stationery                    ,25-Sep-2023,SCI PRINT LTD                           ,275.00,Oct-23
EREWASH BOROUGH COUNCIL,28032,Registration of Electors      ,Stationery                    ,21-Sep-2023,SCI PRINT LTD                           ,"3,081.46",Oct-23
EREWASH BOROUGH COUNCIL,28297,ICT Support Services          ,Office Paper                  ,26-Sep-2023,ANTALIS DOCUMENT SUPPLIES               ,475.50,Oct-23
EREWASH BOROUGH COUNCIL,27457,Legal Services                ,Reference Literature and Publi,29-Aug-2023,LEXISNEXIS BUTTERWORTHS                 ,621.00,Oct-23
EREWASH BOROUGH COUNCIL,28060,Homelessness                  ,Temporary Accommodation       ,21-Aug-2023,MR K. SINGH - ADFAN LTD                 ,315.00,Oct-23
EREWASH BOROUGH COUNCIL,28060,Homelessness                  ,Temporary Accommodation       ,21-Aug-2023,MR K. SINGH - ADFAN LTD                 ,"1,260.00",Oct-23
EREWASH BOROUGH COUNCIL,27868,Homelessness                  ,Temporary Accommodation       ,15-Sep-2023,C WE ARE HERE YOUTH LTD                 ,500.00,Oct-23
EREWASH BOROUGH COUNCIL,28345,Homelessness                  ,Temporary Accommodation       ,02-Oct-2023,C WE ARE HERE YOUTH LTD                 ,500.00,Oct-23
EREWASH BOROUGH COUNCIL,28665,Homelessness                  ,Temporary Accommodation       ,14-Oct-2023,VICTORIA PARK HOTEL                     ,483.00,Oct-23
EREWASH BOROUGH COUNCIL,28665,Homelessness                  ,Temporary Accommodation       ,14-Oct-2023,VICTORIA PARK HOTEL                     ,"7,452.00",Oct-23
EREWASH BOROUGH COUNCIL,28666,Homelessness                  ,Temporary Accommodation       ,14-Oct-2023,VICTORIA PARK HOTEL                     ,483.00,Oct-23
EREWASH BOROUGH COUNCIL,28666,Homelessness                  ,Temporary Accommodation       ,14-Oct-2023,VICTORIA PARK HOTEL                     ,"8,832.00",Oct-23
EREWASH BOROUGH COUNCIL,28064,Homelessness                  ,Temporary Accommodation       ,25-Sep-2023,PARAMOUNT HOTEL                         ,840.00,Oct-23
EREWASH BOROUGH COUNCIL,28287,Homelessness                  ,Temporary Accommodation       ,02-Oct-2023,PARAMOUNT HOTEL                         ,840.00,Oct-23
EREWASH BOROUGH COUNCIL,28063,Homelessness                  ,Temporary Accommodation       ,25-Sep-2023,PARAMOUNT HOTEL                         ,420.00,Oct-23
EREWASH BOROUGH COUNCIL,27698,Homelessness                  ,Temporary Accommodation       ,11-Sep-2023,PARAMOUNT HOTEL                         ,840.00,Oct-23
EREWASH BOROUGH COUNCIL,27890,Homelessness                  ,Temporary Accommodation       ,18-Sep-2023,PARAMOUNT HOTEL                         ,840.00,Oct-23
EREWASH BOROUGH COUNCIL,28856,Homelessness                  ,Temporary Accommodation       ,23-Oct-2023,PARAMOUNT HOTEL                         ,420.00,Oct-23
EREWASH BOROUGH COUNCIL,28855,Homelessness                  ,Temporary Accommodation       ,23-Oct-2023,PARAMOUNT HOTEL                         ,840.00,Oct-23
EREWASH BOROUGH COUNCIL,28288,Homelessness                  ,Temporary Accommodation       ,02-Oct-2023,PARAMOUNT HOTEL                         ,420.00,Oct-23
EREWASH BOROUGH COUNCIL,28490,Homelessness                  ,Temporary Accommodation       ,09-Oct-2023,PARAMOUNT HOTEL                         ,420.00,Oct-23
EREWASH BOROUGH COUNCIL,28663,Homelessness                  ,Temporary Accommodation       ,16-Oct-2023,PARAMOUNT HOTEL                         ,420.00,Oct-23
EREWASH BOROUGH COUNCIL,28489,Homelessness                  ,Temporary Accommodation       ,09-Oct-2023,PARAMOUNT HOTEL                         ,840.00,Oct-23
EREWASH BOROUGH COUNCIL,28661,Homelessness                  ,Temporary Accommodation       ,16-Oct-2023,PARAMOUNT HOTEL                         ,840.00,Oct-23
EREWASH BOROUGH COUNCIL,28869,Homelessness                  ,Temporary Accommodation       ,23-Oct-2023,A38 WOODLANDS                           ,378.00,Oct-23
EREWASH BOROUGH COUNCIL,28867,Homelessness                  ,Temporary Accommodation       ,23-Oct-2023,A38 WOODLANDS                           ,406.00,Oct-23
EREWASH BOROUGH COUNCIL,28868,Homelessness                  ,Temporary Accommodation       ,23-Oct-2023,A38 WOODLANDS                           ,406.00,Oct-23
EREWASH BOROUGH COUNCIL,27691,Homelessness                  ,Temporary Accommodation       ,11-Sep-2023,A38 WOODLANDS                           ,378.00,Oct-23
EREWASH BOROUGH COUNCIL,27893,Homelessness                  ,Temporary Accommodation       ,18-Sep-2023,A38 WOODLANDS                           ,378.00,Oct-23
EREWASH BOROUGH COUNCIL,28058,Homelessness                  ,Temporary Accommodation       ,25-Sep-2023,A38 WOODLANDS                           ,378.00,Oct-23
EREWASH BOROUGH COUNCIL,27692,Homelessness                  ,Temporary Accommodation       ,11-Sep-2023,A38 WOODLANDS                           ,406.00,Oct-23
EREWASH BOROUGH COUNCIL,27894,Homelessness                  ,Temporary Accommodation       ,18-Sep-2023,A38 WOODLANDS                           ,406.00,Oct-23
EREWASH BOROUGH COUNCIL,28057,Homelessness                  ,Temporary Accommodation       ,25-Sep-2023,A38 WOODLANDS                           ,406.00,Oct-23
EREWASH BOROUGH COUNCIL,28283,Homelessness                  ,Temporary Accommodation       ,02-Oct-2023,A38 WOODLANDS                           ,378.00,Oct-23
EREWASH BOROUGH COUNCIL,28487,Homelessness                  ,Temporary Accommodation       ,09-Oct-2023,A38 WOODLANDS                           ,378.00,Oct-23
EREWASH BOROUGH COUNCIL,28657,Homelessness                  ,Temporary Accommodation       ,16-Oct-2023,A38 WOODLANDS                           ,378.00,Oct-23
EREWASH BOROUGH COUNCIL,28284,Homelessness                  ,Temporary Accommodation       ,02-Oct-2023,A38 WOODLANDS                           ,406.00,Oct-23
EREWASH BOROUGH COUNCIL,28486,Homelessness                  ,Temporary Accommodation       ,09-Oct-2023,A38 WOODLANDS                           ,406.00,Oct-23
EREWASH BOROUGH COUNCIL,28658,Homelessness                  ,Temporary Accommodation       ,16-Oct-2023,A38 WOODLANDS                           ,406.00,Oct-23
EREWASH BOROUGH COUNCIL,28659,Homelessness                  ,Temporary Accommodation       ,16-Oct-2023,A38 WOODLANDS                           ,406.00,Oct-23
EREWASH BOROUGH COUNCIL,27990,Homelessness                  ,Temporary Accommodation       ,11-Sep-2023,ASCOT HOTEL                             ,280.00,Oct-23
EREWASH BOROUGH COUNCIL,27991,Homelessness                  ,Temporary Accommodation       ,18-Sep-2023,ASCOT HOTEL                             ,280.00,Oct-23
EREWASH BOROUGH COUNCIL,28875,Homelessness                  ,Leased Properties             ,16-Oct-2023,JP'S GROUNDS & MAINTENANCE SERVICES     ,490.00,Oct-23
EREWASH BOROUGH COUNCIL,28711,Homelessness                  ,Leased Properties             ,11-Oct-2023,TRADE CARPETS                           ,900.00,Oct-23
EREWASH BOROUGH COUNCIL,28273,Homelessness                  ,Leased Properties             ,29-Sep-2023,TUNTUM HOUSING ASSOCIATION.             ,"1,238.25",Oct-23
EREWASH BOROUGH COUNCIL,28633,Homelessness                  ,Leased Properties             ,01-Oct-2023,FUTURES HOMESCAPE LTD                   ,"1,141.75",Oct-23
EREWASH BOROUGH COUNCIL,28377,Homelessness                  ,Leased Properties             ,01-Oct-2023,EMH HOMES                               ,"1,171.89",Oct-23
EREWASH BOROUGH COUNCIL,28376,Homelessness                  ,Leased Properties             ,01-Oct-2023,EMH HOMES                               ,"1,477.32",Oct-23
EREWASH BOROUGH COUNCIL,27884,Household Waste Collection    ,Consultants Fees              ,18-Sep-2023,SELLICK PARTNERSHIP RECRUITMENT SPECIAL ,"2,475.00",Oct-23
EREWASH BOROUGH COUNCIL,28286,Household Waste Collection    ,Consultants Fees              ,02-Oct-2023,SELLICK PARTNERSHIP RECRUITMENT SPECIAL ,"2,475.00",Oct-23
EREWASH BOROUGH COUNCIL,28074,Household Waste Collection    ,Consultants Fees              ,25-Sep-2023,SELLICK PARTNERSHIP RECRUITMENT SPECIAL ,"2,475.00",Oct-23
EREWASH BOROUGH COUNCIL,28339,Development Control           ,Consultants Fees              ,30-Sep-2023,IDOM MEREBROOK LTD                      ,412.50,Oct-23
EREWASH BOROUGH COUNCIL,27711,Development Control           ,Consultants Fees              ,31-Aug-2023,TERRAQUEST DATA SOLUTIONS               ,"2,514.00",Oct-23
EREWASH BOROUGH COUNCIL,28303,Development Control           ,Consultants Fees              ,27-Sep-2023,ESSEX COUNTY COUNCIL                    ,"6,840.00",Oct-23
EREWASH BOROUGH COUNCIL,28467,Development Control           ,Consultants Fees              ,30-Sep-2023,TERRAQUEST DATA SOLUTIONS               ,"2,298.00",Oct-23
EREWASH BOROUGH COUNCIL,28517,Planning Policy               ,Consultants Fees              ,29-Sep-2023,ANDREW GOLLAND ASSOCIATES               ,"9,900.00",Oct-23
EREWASH BOROUGH COUNCIL,28533,Erewash Museum                ,Contracted Services           ,06-Oct-2023,SPIRAL ARTS                             ,400.00,Oct-23
EREWASH BOROUGH COUNCIL,28448,Infec Disease & Food Poisoning,Contracted Services           ,04-Oct-2023,OSBORNE RICHARDSON                      ,444.10,Oct-23
EREWASH BOROUGH COUNCIL,28449,Infec Disease & Food Poisoning,Contracted Services           ,04-Oct-2023,OSBORNE RICHARDSON                      ,650.70,Oct-23
EREWASH BOROUGH COUNCIL,27599,Infec Disease & Food Poisoning,Contracted Services           ,06-Sep-2023,OYSTER PARTNERSHIP LTD                  ,543.68,Oct-23
EREWASH BOROUGH COUNCIL,27458,Homelessness Prevention       ,Contracted Services           ,31-Aug-2023,NORTH EAST DERBYSHIRE DISTRICT COUNCIL. ,"2,997.22",Oct-23
EREWASH BOROUGH COUNCIL,28073,Building Control Adv & Inform ,Contracted Services           ,29-Sep-2023,MANSFIELD DISTRICT COUNCIL              ,"1,000.00",Oct-23
EREWASH BOROUGH COUNCIL,28296,Green Space                   ,Contracted Services           ,26-Sep-2023,T H HEATH  CONTRACTS  LTD               ,"6,022.00",Oct-23
EREWASH BOROUGH COUNCIL,28299,Trees Hedges Local Nature Res ,Contracted Services           ,22-Sep-2023,TOM RICHARDS TREE SERVICES              ,"1,050.00",Oct-23
EREWASH BOROUGH COUNCIL,27724,Watercourse Maintenance       ,Contracted Services           ,11-Sep-2023,SELLICK PARTNERSHIP RECRUITMENT SPECIAL ,"2,475.00",Oct-23
EREWASH BOROUGH COUNCIL,27708,Car Parking                   ,Contracted Services           ,07-Sep-2023,INTERNATIONAL PARKING SYSTEMS UK LTD    ,"1,805.00",Oct-23
EREWASH BOROUGH COUNCIL,28315,Car Parking                   ,Contracted Services           ,30-Sep-2023,KINGS ARMOURED SECURITY SERVICES        ,"1,592.10",Oct-23
EREWASH BOROUGH COUNCIL,28313,Front Line Support Services   ,Security                      ,30-Sep-2023,KINGS ARMOURED SECURITY SERVICES        ,390.00,Oct-23
EREWASH BOROUGH COUNCIL,28360,ICT Support Services          ,Security                      ,28-Sep-2023,QUEST SOFTWARE INTERNATIONAL LTD        ,"1,300.00",Oct-23
EREWASH BOROUGH COUNCIL,27002,Kerbside Recycling Collection ,Waste Disposal                ,31-Jul-2023,GAE SMITH HOLDINGS T/A CASEPAK          ,"44,512.11",Oct-23
EREWASH BOROUGH COUNCIL,28258,Homelessness                  ,Fees Costs and Expenses       ,05-Sep-2023,BETTA FENCES AND LANDSCAPES             ,980.00,Oct-23
EREWASH BOROUGH COUNCIL,28035,Legal Services                ,Fees Costs and Expenses       ,17-Aug-2023,NO5 CHAMBERS LTD COLLECTION ACCOUNT     ,"52,000.00",Oct-23
EREWASH BOROUGH COUNCIL,28532,Commissioned Projects         ,Fees Costs and Expenses       ,10-Oct-2023,LIVE LOVE YOGA                          ,265.60,Oct-23
EREWASH BOROUGH COUNCIL,28675,Civic Duties Hospitality      ,Civic Events                  ,08-Sep-2023,SPURCROFT CIVIC                         ,352.50,Oct-23
EREWASH BOROUGH COUNCIL,28923,Civic Duties Hospitality      ,Ilkeston Fair Reception       ,19-Oct-2023,SOUTH PERK SANDWICK BAR                 ,735.00,Oct-23
EREWASH BOROUGH COUNCIL,27889,Homelessness Prevention       ,Spend to Save                 ,18-Sep-2023,PARAMOUNT HOTEL                         ,420.00,Oct-23
EREWASH BOROUGH COUNCIL,28340,Homelessness Prevention       ,Spend to Save                 ,03-Oct-2023,REDACTED PERSONAL DATA,"1,615.00",Oct-23
EREWASH BOROUGH COUNCIL,28307,Erewash Museum                ,Special Events                ,21-Oct-2023,PAUL TEMPLE                             ,380.00,Oct-23
EREWASH BOROUGH COUNCIL,28682,Erewash Museum                ,Special Events                ,06-Sep-2023,IMPERATIVE TRAINING LTD                 ,"1,045.00",Oct-23
EREWASH BOROUGH COUNCIL,28321,Ilkeston Charter Fair         ,Special Events                ,29-Sep-2023,DERBYSHIRE COUNTY COUNCIL...            ,947.64,Oct-23
EREWASH BOROUGH COUNCIL,28853,Treasury and Bank Charges     ,BACS Charges                  ,13-Oct-2023,LLOYDS BANK PLC                         ,535.97,Oct-23
EREWASH BOROUGH COUNCIL,28839,Treasury and Bank Charges     ,Credit/Debit Card Charges     ,18-Oct-2023,ACCESS PAYSUITE LTD - WAS PAY 360       ,"5,596.37",Oct-23
EREWASH BOROUGH COUNCIL,28344,Car Parking                   ,Credit/Debit Card Charges     ,30-Sep-2023,INTERNATIONAL PARKING SYSTEMS UK LTD    ,"3,630.04",Oct-23
EREWASH BOROUGH COUNCIL,29269,Treasury and Bank Charges     ,Allpay/Post Office Charges    ,31-Oct-2023,ALLPAY LIMITED                          ,833.23,Oct-23
EREWASH BOROUGH COUNCIL,28365,Housing Benefit Administration,Computer Software             ,30-Sep-2023,CIVICA UK LIMITED                       ,"3,300.00",Oct-23
EREWASH BOROUGH COUNCIL,28251,Trade Waste                   ,Software Licences             ,28-Sep-2023,WHITESPACE WORK SOFTWARE LTD            ,252.20,Oct-23
EREWASH BOROUGH COUNCIL,28324,Performance Management        ,Software Licences             ,29-Sep-2023,LOCAL GOVERNMENT ASSOCIATION            ,605.00,Oct-23
EREWASH BOROUGH COUNCIL,28310,Revenues and Benefits         ,Software Licences             ,28-Sep-2023,ASCENDANT SOLUTIONS                     ,"26,560.00",Oct-23
EREWASH BOROUGH COUNCIL,27898,Payments                      ,Software Licences             ,15-Sep-2023,INSIGHT DIRECT (UK) LTD                 ,354.99,Oct-23
EREWASH BOROUGH COUNCIL,27897,Human Resources               ,Software Licences             ,15-Sep-2023,INSIGHT DIRECT (UK) LTD                 ,"5,297.13",Oct-23
EREWASH BOROUGH COUNCIL,27734,ICT Support Services          ,Data Lines                    ,12-Sep-2023,AXESS SYSTEMS LTD                       ,564.00,Oct-23
EREWASH BOROUGH COUNCIL,28513,ICT Support Services          ,Mobile Phones                 ,09-Oct-2023,CLASS AFFINITY PROJECTS LTD             ,"1,611.08",Oct-23
EREWASH BOROUGH COUNCIL,27879,Revenues and Benefits         ,Postages                      ,13-Sep-2023,ROYAL MAIL GROUP LTD.                   ,817.72,Oct-23
EREWASH BOROUGH COUNCIL,28126,Revenues and Benefits         ,Postages                      ,27-Sep-2023,ROYAL MAIL GROUP LTD.                   ,"1,285.16",Oct-23
EREWASH BOROUGH COUNCIL,27520,Revenues and Benefits         ,Postages                      ,06-Sep-2023,ROYAL MAIL GROUP LTD.                   ,747.24,Oct-23
EREWASH BOROUGH COUNCIL,27973,Revenues and Benefits         ,Postages                      ,20-Sep-2023,ROYAL MAIL GROUP LTD.                   ,971.60,Oct-23
EREWASH BOROUGH COUNCIL,27727,Revenues and Benefits         ,Postages                      ,11-Sep-2023,DSI BILLING SERVICES LTD                ,"1,844.62",Oct-23
EREWASH BOROUGH COUNCIL,27529,Revenues and Benefits         ,Postages                      ,05-Sep-2023,ROYAL MAIL GROUP LTD.                   ,395.00,Oct-23
EREWASH BOROUGH COUNCIL,28550,Revenues and Benefits         ,Postages                      ,30-Sep-2023,TELSOLUTIONS LTD                        ,300.00,Oct-23
EREWASH BOROUGH COUNCIL,28944,ICT Support Services          ,Telephones                    ,22-Oct-2023,BRITISH TELECOMMUNICATIONS PLC          ,742.98,Oct-23
EREWASH BOROUGH COUNCIL,28272,Mayors Expense Account        ,Allowances                    ,27-Sep-2023,REBECCA MORLEDGE                        ,350.00,Oct-23
EREWASH BOROUGH COUNCIL,28509,Community Safety              ,Grants and Subscriptions      ,13-Jul-2023,MALLARD CONSULTANCY LTD                 ,499.50,Oct-23
EREWASH BOROUGH COUNCIL,28509,"Police, Crime Commissioner Com",Project Grants                ,13-Jul-2023,MALLARD CONSULTANCY LTD                 ,499.50,Oct-23
EREWASH BOROUGH COUNCIL,28089,Community Grants              ,Project Grants                ,26-Sep-2023,LONG EATON SEA CADETS,"1,200.00",Oct-23
EREWASH BOROUGH COUNCIL,28491,Community Grants              ,Project Grants                ,09-Oct-2023,HONEY HOPE FARM COMMUNITY INTEREST COM,"1,344.00",Oct-23
EREWASH BOROUGH COUNCIL,28090,Community Grants              ,Project Grants                ,26-Sep-2023,COTMANHAY COMMUNITY NETWORK             ,"1,500.00",Oct-23
EREWASH BOROUGH COUNCIL,28318,Economic Development          ,Project Grants                ,29-Sep-2023,INSIDE OUT GROUP (EUROPE) LTD           ,300.00,Oct-23
EREWASH BOROUGH COUNCIL,28704,Economic Development          ,Project Grants                ,28-Sep-2023,BROWNE JACOBSON                         ,913.80,Oct-23
EREWASH BOROUGH COUNCIL,28471,Shared Prosperity             ,Project Grants                ,06-Oct-2023,UKSPF R&D GRANT SCHEME                  ,"17,520.00",Oct-23
EREWASH BOROUGH COUNCIL,28472,Shared Prosperity             ,Project Grants                ,06-Oct-2023,UKSPF R&D GRANT SCHEME                  ,"14,425.28",Oct-23
EREWASH BOROUGH COUNCIL,28271,Shared Prosperity             ,Project Grants                ,29-Sep-2023,UKSPF R&D GRANT SCHEME                  ,"15,000.00",Oct-23
EREWASH BOROUGH COUNCIL,28348,Registration of Electors      ,Subscriptions                 ,01-Oct-2023,THOMSON REUTERS                         ,343.00,Oct-23
EREWASH BOROUGH COUNCIL,28373,Shared Prosperity             ,Other Grants                  ,04-Oct-2023,UKSPF R&D GRANT SCHEME                  ,"1,626.00",Oct-23
EREWASH BOROUGH COUNCIL,28436,Shared Prosperity             ,Other Grants                  ,04-Oct-2023,UKSPF R&D GRANT SCHEME                  ,552.00,Oct-23
EREWASH BOROUGH COUNCIL,28718,Shared Prosperity             ,Other Grants                  ,18-Oct-2023,UKSPF R&D GRANT SCHEME                  ,"1,898.40",Oct-23
EREWASH BOROUGH COUNCIL,27909,Housing Benefit Administration,Miscellaneous Government Grant,18-Sep-2023,CIVICA UK LIMITED                       ,"1,143.28",Oct-23
EREWASH BOROUGH COUNCIL,27909,Housing Benefit Administration,Miscellaneous Government Grant,18-Sep-2023,CIVICA UK LIMITED                       ,"6,480.28",Oct-23
EREWASH BOROUGH COUNCIL,29158,EBC Balance Sheet             ,Employee Car Loans            ,31-Oct-2023,REDACTED PERSONAL DATA,"10,500.00",Oct-23
EREWASH BOROUGH COUNCIL,29380,EBC Balance Sheet             ,Fuel Store                    ,31-Oct-2023,THE RIGHT FUELCARD COMPANY LTD          ,"1,330.56",Oct-23
EREWASH BOROUGH COUNCIL,28115,EBC Balance Sheet             ,Fuel Store                    ,21-Sep-2023,CERTAS ENERGY UK LIMITED T/A CARLTON FUE,"38,801.59",Oct-23
EREWASH BOROUGH COUNCIL,29282,EBC Balance Sheet             ,NNDR Coll Fund Control Account,19-Oct-2023,"DEPT FOR LEVELLING UP,HOUSING&COMMUNITIE","868,659.00",Oct-23
EREWASH BOROUGH COUNCIL,28121,EBC Balance Sheet             ,Payroll Coll Acc - Income Tax ,20-Oct-2023,HMRC CUMBERNAULD                        ,"67,240.10",Oct-23
EREWASH BOROUGH COUNCIL,28077,EBC Balance Sheet             ,Payroll Coll Acc - Income Tax ,20-Oct-2023,HMRC CUMBERNAULD                        ,416.60,Oct-23
EREWASH BOROUGH COUNCIL,28080,EBC Balance Sheet             ,Payroll Coll Acc Superanuation,11-Oct-2023,DERBYSHIRE COUNTY COUNCIL...            ,"162,636.45",Oct-23
EREWASH BOROUGH COUNCIL,28080,EBC Balance Sheet             ,Payroll Coll Acc Superanuation,11-Oct-2023,DERBYSHIRE COUNTY COUNCIL...            ,"41,834.00",Oct-23
EREWASH BOROUGH COUNCIL,28121,EBC Balance Sheet             ,Payroll Coll Acc National Ins ,20-Oct-2023,HMRC CUMBERNAULD                        ,"92,366.76",Oct-23
EREWASH BOROUGH COUNCIL,28077,EBC Balance Sheet             ,Payroll Coll Acc National Ins ,20-Oct-2023,HMRC CUMBERNAULD                        ,500.51,Oct-23
EREWASH BOROUGH COUNCIL,28121,EBC Balance Sheet             ,Payroll Coll Acc Student Loan ,20-Oct-2023,HMRC CUMBERNAULD                        ,"1,316.00",Oct-23
EREWASH BOROUGH COUNCIL,28906,EBC Balance Sheet             ,Payroll Coll Acc - Trade Union,24-Oct-2023,UNISON                                  ,332.40,Oct-23
EREWASH BOROUGH COUNCIL,28895,EBC Balance Sheet             ,Payroll Coll Acc Labour Party ,24-Oct-2023,EREWASH LABOUR GROUP                    ,"1,331.57",Oct-23
EREWASH BOROUGH COUNCIL,28092,EBC Balance Sheet             ,Payroll Coll Acc - AVCS       ,22-Sep-2023,AVC WISE LIMITED                        ,421.84,Oct-23
EREWASH BOROUGH COUNCIL,28902,EBC Balance Sheet             ,Payroll Coll Acc Attmnt Orders,24-Oct-2023,CHILD MAINTENANCE SERVICE               ,807.93,Oct-23
EREWASH BOROUGH COUNCIL,28904,EBC Balance Sheet             ,EBC Fit for Work Scheme       ,24-Oct-2023,PARKWOOD LEISURE LTD                    ,435.00,Oct-23
EREWASH BOROUGH COUNCIL,28458,EBC Balance Sheet             ,Childcare Salary Sacrifice    ,05-Oct-2023,KIDDIVOUCHERS LTD                       ,598.00,Oct-23
EREWASH BOROUGH COUNCIL,28121,Human Resources               ,Apprenticeship Levy           ,20-Oct-2023,HMRC CUMBERNAULD                        ,"1,925.00",Oct-23
EREWASH BOROUGH COUNCIL,28121,Human Resources               ,Apprenticeship Levy           ,20-Oct-2023,HMRC CUMBERNAULD                        ,"1,250.00",Oct-23
EREWASH BOROUGH COUNCIL,27252,Household Waste Collection    ,Agency Staff                  ,25-Aug-2023,EXTRA PERSONNEL LTD                     ,"6,834.83",Oct-23
EREWASH BOROUGH COUNCIL,28053,Household Waste Collection    ,Agency Staff                  ,22-Sep-2023,EXTRA PERSONNEL LTD                     ,601.25,Oct-23
EREWASH BOROUGH COUNCIL,28450,Household Waste Collection    ,Agency Staff                  ,30-Sep-2023,WORKCHAIN LTD                           ,485.10,Oct-23
EREWASH BOROUGH COUNCIL,27611,Household Waste Collection    ,Agency Staff                  ,02-Sep-2023,WORKCHAIN LTD                           ,750.15,Oct-23
EREWASH BOROUGH COUNCIL,27819,Household Waste Collection    ,Agency Staff                  ,09-Sep-2023,WORKCHAIN LTD                           ,950.40,Oct-23
EREWASH BOROUGH COUNCIL,27982,Household Waste Collection    ,Agency Staff                  ,20-Sep-2023,WORKCHAIN LTD                           ,534.60,Oct-23
EREWASH BOROUGH COUNCIL,28277,Trade Waste                   ,Agency Staff                  ,29-Sep-2023,EXTRA PERSONNEL LTD                     ,487.50,Oct-23
EREWASH BOROUGH COUNCIL,27872,Trade Waste                   ,Agency Staff                  ,15-Sep-2023,EXTRA PERSONNEL LTD                     ,487.50,Oct-23
EREWASH BOROUGH COUNCIL,27681,Trade Waste                   ,Agency Staff                  ,08-Sep-2023,EXTRA PERSONNEL LTD                     ,390.00,Oct-23
EREWASH BOROUGH COUNCIL,28053,Trade Waste                   ,Agency Staff                  ,22-Sep-2023,EXTRA PERSONNEL LTD                     ,487.50,Oct-23
EREWASH BOROUGH COUNCIL,27252,Kerbside Recycling Collection ,Agency Staff                  ,25-Aug-2023,EXTRA PERSONNEL LTD                     ,"4,556.56",Oct-23
EREWASH BOROUGH COUNCIL,28450,Kerbside Recycling Collection ,Agency Staff                  ,30-Sep-2023,WORKCHAIN LTD                           ,323.40,Oct-23
EREWASH BOROUGH COUNCIL,27611,Kerbside Recycling Collection ,Agency Staff                  ,02-Sep-2023,WORKCHAIN LTD                           ,500.10,Oct-23
EREWASH BOROUGH COUNCIL,27819,Kerbside Recycling Collection ,Agency Staff                  ,09-Sep-2023,WORKCHAIN LTD                           ,633.60,Oct-23
EREWASH BOROUGH COUNCIL,27982,Kerbside Recycling Collection ,Agency Staff                  ,20-Sep-2023,WORKCHAIN LTD                           ,356.40,Oct-23
EREWASH BOROUGH COUNCIL,27600,Contaminated Land             ,Agency Staff                  ,06-Sep-2023,OYSTER PARTNERSHIP LTD                  ,675.00,Oct-23
EREWASH BOROUGH COUNCIL,27980,Contaminated Land             ,Agency Staff                  ,20-Sep-2023,OYSTER PARTNERSHIP LTD                  ,622.35,Oct-23
EREWASH BOROUGH COUNCIL,27831,Contaminated Land             ,Agency Staff                  ,13-Sep-2023,OYSTER PARTNERSHIP LTD                  ,675.00,Oct-23
EREWASH BOROUGH COUNCIL,28241,Contaminated Land             ,Agency Staff                  ,27-Sep-2023,OYSTER PARTNERSHIP LTD                  ,675.00,Oct-23
EREWASH BOROUGH COUNCIL,28466,Urban Renewal                 ,Agency Staff                  ,04-Oct-2023,BUCKINGHAM FUTURES LIMITED              ,"1,390.80",Oct-23
EREWASH BOROUGH COUNCIL,27820,Urban Renewal                 ,Agency Staff                  ,13-Sep-2023,BUCKINGHAM FUTURES LIMITED              ,"1,406.00",Oct-23
EREWASH BOROUGH COUNCIL,27989,Urban Renewal                 ,Agency Staff                  ,20-Sep-2023,BUCKINGHAM FUTURES LIMITED              ,"1,406.00",Oct-23
EREWASH BOROUGH COUNCIL,28256,Urban Renewal                 ,Agency Staff                  ,27-Sep-2023,BUCKINGHAM FUTURES LIMITED              ,"1,406.00",Oct-23
EREWASH BOROUGH COUNCIL,28359,Council Tax Support Admin     ,Agency Staff                  ,02-Oct-2023,BUSINESS SMART SOLUTIONS LIMITED        ,"1,111.25",Oct-23
EREWASH BOROUGH COUNCIL,28111,Council Tax Support Admin     ,Agency Staff                  ,25-Sep-2023,BUSINESS SMART SOLUTIONS LIMITED        ,"1,020.83",Oct-23
EREWASH BOROUGH COUNCIL,28112,Council Tax Support Admin     ,Agency Staff                  ,25-Sep-2023,BUSINESS SMART SOLUTIONS LIMITED        ,"1,102.50",Oct-23
EREWASH BOROUGH COUNCIL,28465,ICT Support Services          ,Agency Staff                  ,05-Oct-2023,ROBERT HALF LTD                         ,905.76,Oct-23
EREWASH BOROUGH COUNCIL,28252,ICT Support Services          ,Agency Staff                  ,28-Sep-2023,ROBERT HALF LTD                         ,905.76,Oct-23
EREWASH BOROUGH COUNCIL,28837,ICT Support Services          ,Agency Staff                  ,19-Oct-2023,ROBERT HALF LTD                         ,905.76,Oct-23
EREWASH BOROUGH COUNCIL,28634,ICT Support Services          ,Agency Staff                  ,12-Oct-2023,ROBERT HALF LTD                         ,904.05,Oct-23
EREWASH BOROUGH COUNCIL,27822,Building Control - Fee Earning,Agency Staff                  ,14-Sep-2023,MATCHTECH GROUP (UK) LIMITED            ,"1,072.50",Oct-23
EREWASH BOROUGH COUNCIL,27620,Building Control - Fee Earning,Agency Staff                  ,07-Sep-2023,MATCHTECH GROUP (UK) LIMITED            ,412.50,Oct-23
EREWASH BOROUGH COUNCIL,28249,Building Control - Fee Earning,Agency Staff                  ,28-Sep-2023,MATCHTECH GROUP (UK) LIMITED            ,825.00,Oct-23
EREWASH BOROUGH COUNCIL,27987,Building Control - Fee Earning,Agency Staff                  ,21-Sep-2023,MATCHTECH GROUP (UK) LIMITED            ,"1,100.00",Oct-23
EREWASH BOROUGH COUNCIL,28278,Green Space                   ,Agency Staff                  ,29-Sep-2023,EXTRA PERSONNEL LTD                     ,"1,835.26",Oct-23
EREWASH BOROUGH COUNCIL,28278,Street Scene                  ,Agency Staff                  ,29-Sep-2023,EXTRA PERSONNEL LTD                     ,"1,835.26",Oct-23
EREWASH BOROUGH COUNCIL,27876,Long Eaton Market             ,Agency Staff                  ,15-Sep-2023,EXTRA PERSONNEL LTD                     ,203.58,Oct-23
EREWASH BOROUGH COUNCIL,27442,Long Eaton Market             ,Agency Staff                  ,01-Sep-2023,EXTRA PERSONNEL LTD                     ,271.44,Oct-23
EREWASH BOROUGH COUNCIL,27682,Long Eaton Market             ,Agency Staff                  ,08-Sep-2023,EXTRA PERSONNEL LTD                     ,271.44,Oct-23
EREWASH BOROUGH COUNCIL,28276,Long Eaton Market             ,Agency Staff                  ,29-Sep-2023,EXTRA PERSONNEL LTD                     ,271.44,Oct-23
EREWASH BOROUGH COUNCIL,27040,Long Eaton Market             ,Agency Staff                  ,18-Aug-2023,EXTRA PERSONNEL LTD                     ,271.44,Oct-23
EREWASH BOROUGH COUNCIL,27876,Ilkeston Market               ,Agency Staff                  ,15-Sep-2023,EXTRA PERSONNEL LTD                     ,135.72,Oct-23
EREWASH BOROUGH COUNCIL,27442,Ilkeston Market               ,Agency Staff                  ,01-Sep-2023,EXTRA PERSONNEL LTD                     ,180.96,Oct-23
EREWASH BOROUGH COUNCIL,27682,Ilkeston Market               ,Agency Staff                  ,08-Sep-2023,EXTRA PERSONNEL LTD                     ,180.96,Oct-23
EREWASH BOROUGH COUNCIL,28276,Ilkeston Market               ,Agency Staff                  ,29-Sep-2023,EXTRA PERSONNEL LTD                     ,180.96,Oct-23
EREWASH BOROUGH COUNCIL,27040,Ilkeston Market               ,Agency Staff                  ,18-Aug-2023,EXTRA PERSONNEL LTD                     ,180.96,Oct-23
EREWASH BOROUGH COUNCIL,28097,Occupational Health & Welfare ,Occupational Health Service   ,18-Sep-2023,MEDIGOLD HEALTH CONSULTANCY LIMITED     ,702.50,Oct-23
EREWASH BOROUGH COUNCIL,28070,Training - HR Only            ,Courses and Seminars          ,22-Sep-2023,ACT NOW TRAINING LTD                    ,399.00,Oct-23
EREWASH BOROUGH COUNCIL,28939,Training - HR Only            ,Health and Safety Training    ,18-Oct-2023,NOTTINGHAM CITY COUNCIL                 ,574.00,Oct-23
EREWASH BOROUGH COUNCIL,28728,Transport Trading Account     ,Training                      ,27-Jun-2023,ASSOC. FOR PUBLIC SERVICE EXCELLENCE    ,278.00,Oct-23
EREWASH BOROUGH COUNCIL,28642,Transport Trading Account     ,Training                      ,31-Aug-2022,ASSOC. FOR PUBLIC SERVICE EXCELLENCE    ,289.00,Oct-23
EREWASH BOROUGH COUNCIL,27703,Household Waste Collection    ,Training                      ,05-Sep-2023,ROLLIN TRANSPORT TRAINING               ,250.00,Oct-23
EREWASH BOROUGH COUNCIL,28330,Performance Management        ,Training                      ,28-Sep-2023,ACT NOW TRAINING LTD                    ,399.00,Oct-23
EREWASH BOROUGH COUNCIL,28008,Property and Estates          ,Repairs and Maintenance       ,18-Sep-2023,ORTON MECHANICAL SERVICES               ,"3,150.36",Oct-23
EREWASH BOROUGH COUNCIL,27851,Property and Estates          ,Repairs and Maintenance       ,13-Sep-2023,PEEL ELECTRICAL LTD                     ,336.64,Oct-23
EREWASH BOROUGH COUNCIL,27985,Property and Estates          ,Repairs and Maintenance       ,20-Sep-2023,ALPHA PARTNER (MIDLANDS)  LIMITED       ,"2,760.00",Oct-23
EREWASH BOROUGH COUNCIL,28317,Pedestrian Zones - Ilk and LE ,Reactive Maintenance          ,29-Sep-2023,STEELCRAFT FABRICATIONS                 ,420.00,Oct-23
EREWASH BOROUGH COUNCIL,28337,Property and Estates          ,Reactive Maintenance          ,30-Sep-2023,INNES ENGLAND LTD                       ,750.00,Oct-23
EREWASH BOROUGH COUNCIL,27885,Property and Estates          ,Reactive Maintenance          ,18-Sep-2023,ALPHA PARTNER (MIDLANDS)  LIMITED       ,290.00,Oct-23
EREWASH BOROUGH COUNCIL,27886,Property and Estates          ,Reactive Maintenance          ,18-Sep-2023,ALPHA PARTNER (MIDLANDS)  LIMITED       ,760.00,Oct-23
EREWASH BOROUGH COUNCIL,27741,Property and Estates          ,Reactive Maintenance          ,12-Sep-2023,ALPHA PARTNER (MIDLANDS)  LIMITED       ,"1,915.00",Oct-23
EREWASH BOROUGH COUNCIL,27850,Civic Accommodation Ilkeston  ,PPM Mechanical and Equipment  ,13-Sep-2023,PEEL ELECTRICAL LTD                     ,669.82,Oct-23
EREWASH BOROUGH COUNCIL,27616,Civic Accommodation Ilkeston  ,PPM Mechanical and Equipment  ,07-Sep-2023,PEEL ELECTRICAL LTD                     ,436.24,Oct-23
EREWASH BOROUGH COUNCIL,28331,Parks Other Buildings         ,Bridge Repairs and Maintenance,30-Sep-2023,EASTWOOD & PARTNERS                     ,"1,625.00",Oct-23
EREWASH BOROUGH COUNCIL,27970,Erewash Museum                ,Electricity                   ,11-Sep-2023,TOTALENERGIES GAS & POWER LTD           ,620.10,Oct-23
EREWASH BOROUGH COUNCIL,27970,Green Space                   ,Electricity                   ,11-Sep-2023,TOTALENERGIES GAS & POWER LTD           ,"1,011.49",Oct-23
EREWASH BOROUGH COUNCIL,27970,Green Space                   ,Electricity                   ,11-Sep-2023,TOTALENERGIES GAS & POWER LTD           ,"2,051.37",Oct-23
EREWASH BOROUGH COUNCIL,27969,Green Space                   ,Electricity                   ,11-Sep-2023,TOTALENERGIES GAS & POWER LTD           ,"2,351.18",Oct-23
EREWASH BOROUGH COUNCIL,27970,Cemeteries                    ,Electricity                   ,11-Sep-2023,TOTALENERGIES GAS & POWER LTD           ,359.99,Oct-23
EREWASH BOROUGH COUNCIL,27970,Public Conveniences           ,Electricity                   ,11-Sep-2023,TOTALENERGIES GAS & POWER LTD           ,"2,447.81",Oct-23
EREWASH BOROUGH COUNCIL,27970,CCTV - Ilkeston and Long Eaton,Electricity                   ,11-Sep-2023,TOTALENERGIES GAS & POWER LTD           ,747.96,Oct-23
EREWASH BOROUGH COUNCIL,27970,Car Parking                   ,Electricity                   ,11-Sep-2023,TOTALENERGIES GAS & POWER LTD           ,"1,379.61",Oct-23
EREWASH BOROUGH COUNCIL,27970,Ilkeston Market               ,Electricity                   ,11-Sep-2023,TOTALENERGIES GAS & POWER LTD           ,641.82,Oct-23
EREWASH BOROUGH COUNCIL,27969,Merlin Way Depot              ,Electricity                   ,11-Sep-2023,TOTALENERGIES GAS & POWER LTD           ,"2,693.63",Oct-23
EREWASH BOROUGH COUNCIL,27969,Civic Accommodation Long Eaton,Electricity                   ,11-Sep-2023,TOTALENERGIES GAS & POWER LTD           ,"2,993.16",Oct-23
EREWASH BOROUGH COUNCIL,27970,Civic Accommodation Ilkeston  ,Electricity                   ,11-Sep-2023,TOTALENERGIES GAS & POWER LTD           ,490.25,Oct-23
EREWASH BOROUGH COUNCIL,27969,Civic Accommodation Ilkeston  ,Electricity                   ,11-Sep-2023,TOTALENERGIES GAS & POWER LTD           ,"2,649.69",Oct-23
EREWASH BOROUGH COUNCIL,27969,Sandiacre Friesland Sports Ctr,Electricity                   ,11-Sep-2023,TOTALENERGIES GAS & POWER LTD           ,"1,113.88",Oct-23
EREWASH BOROUGH COUNCIL,27972,Green Space                   ,Gas                           ,14-Sep-2023,TOTALENERGIES GAS & POWER LTD           ,531.65,Oct-23
EREWASH BOROUGH COUNCIL,27972,Civic Accommodation Ilkeston  ,Gas                           ,14-Sep-2023,TOTALENERGIES GAS & POWER LTD           ,957.36,Oct-23
EREWASH BOROUGH COUNCIL,27972,Sandiacre Friesland Sports Ctr,Gas                           ,14-Sep-2023,TOTALENERGIES GAS & POWER LTD           ,708.54,Oct-23
EREWASH BOROUGH COUNCIL,28044,Green Space                   ,Metered Water                 ,12-Sep-2023,ANGLIAN WATER BUSINESS (NATIONAL)       ,"6,407.63",Oct-23
EREWASH BOROUGH COUNCIL,28044,Allotments                    ,Metered Water                 ,12-Sep-2023,ANGLIAN WATER BUSINESS (NATIONAL)       ,758.36,Oct-23
EREWASH BOROUGH COUNCIL,28044,Public Conveniences           ,Metered Water                 ,12-Sep-2023,ANGLIAN WATER BUSINESS (NATIONAL)       ,"3,492.79",Oct-23
EREWASH BOROUGH COUNCIL,28530,Merlin Way Depot              ,Metered Water                 ,05-Sep-2023,SCOTTISH WATER BUSINESS STREAM LIMITED  ,430.05,Oct-23
EREWASH BOROUGH COUNCIL,28044,Merlin Way Depot              ,Metered Water                 ,12-Sep-2023,ANGLIAN WATER BUSINESS (NATIONAL)       ,"1,978.75",Oct-23
EREWASH BOROUGH COUNCIL,28044,Civic Accommodation Long Eaton,Metered Water                 ,12-Sep-2023,ANGLIAN WATER BUSINESS (NATIONAL)       ,496.32,Oct-23
EREWASH BOROUGH COUNCIL,28044,Civic Accommodation Ilkeston  ,Metered Water                 ,12-Sep-2023,ANGLIAN WATER BUSINESS (NATIONAL)       ,652.32,Oct-23
EREWASH BOROUGH COUNCIL,27425,Corporate Health and Safety   ,Water Testing                 ,31-Aug-2023,STERILIZING SERVICES LTD                ,"1,407.00",Oct-23
EREWASH BOROUGH COUNCIL,28044,Car Parking                   ,Unmetered Water               ,12-Sep-2023,ANGLIAN WATER BUSINESS (NATIONAL)       ,"1,998.80",Oct-23
EREWASH BOROUGH COUNCIL,28009,Transport Trading Account     ,Lubricants and Anti-freeze    ,14-Sep-2023,EUROTRUCK MIDLANDS LTD                  ,498.00,Oct-23
EREWASH BOROUGH COUNCIL,27840,Transport Trading Account     ,Lubricants and Anti-freeze    ,11-Sep-2023,EUROTRUCK MIDLANDS LTD                  ,490.00,Oct-23
EREWASH BOROUGH COUNCIL,27999,Household Waste Collection    ,Repairs and Maintenance       ,13-Sep-2023,DENNIS EAGLE LTD                        ,340.23,Oct-23
EREWASH BOROUGH COUNCIL,28010,Household Waste Collection    ,Repairs and Maintenance       ,18-Sep-2023,DENNIS EAGLE LTD                        ,252.58,Oct-23
EREWASH BOROUGH COUNCIL,27995,Household Waste Collection    ,Repairs and Maintenance       ,08-Sep-2023,DENNIS EAGLE LTD                        ,301.95,Oct-23
EREWASH BOROUGH COUNCIL,27995,Household Waste Collection    ,Repairs and Maintenance       ,08-Sep-2023,DENNIS EAGLE LTD                        ,284.63,Oct-23
EREWASH BOROUGH COUNCIL,27996,Household Waste Collection    ,Repairs and Maintenance       ,11-Sep-2023,DENNIS EAGLE LTD                        ,301.95,Oct-23
EREWASH BOROUGH COUNCIL,27996,Household Waste Collection    ,Repairs and Maintenance       ,11-Sep-2023,DENNIS EAGLE LTD                        ,284.63,Oct-23
EREWASH BOROUGH COUNCIL,28367,Household Waste Collection    ,Repairs and Maintenance       ,02-Oct-2023,EUROTRUCK MIDLANDS LTD                  ,450.00,Oct-23
EREWASH BOROUGH COUNCIL,28367,Household Waste Collection    ,Repairs and Maintenance       ,02-Oct-2023,EUROTRUCK MIDLANDS LTD                  ,450.00,Oct-23
EREWASH BOROUGH COUNCIL,28096,Household Waste Collection    ,Repairs and Maintenance       ,19-Sep-2023,EUROTRUCK MIDLANDS LTD                  ,450.00,Oct-23
EREWASH BOROUGH COUNCIL,28014,Kerbside Recycling Collection ,Repairs and Maintenance       ,19-Sep-2023,EUROTRUCK MIDLANDS LTD                  ,378.00,Oct-23
EREWASH BOROUGH COUNCIL,28552,Kerbside Recycling Collection ,Repairs and Maintenance       ,29-Sep-2023,WILLIAM WEST & SONS (ILKESTON) LIMITED  ,450.00,Oct-23
EREWASH BOROUGH COUNCIL,28552,Kerbside Recycling Collection ,Repairs and Maintenance       ,29-Sep-2023,WILLIAM WEST & SONS (ILKESTON) LIMITED  ,769.75,Oct-23
EREWASH BOROUGH COUNCIL,28512,Green Space                   ,Repairs and Maintenance       ,16-Aug-2023,RUSSELLS (KIRBYMOORSIDE) LIMITED        ,"1,085.29",Oct-23
EREWASH BOROUGH COUNCIL,28512,Green Space                   ,Repairs and Maintenance       ,16-Aug-2023,RUSSELLS (KIRBYMOORSIDE) LIMITED        ,610.61,Oct-23
EREWASH BOROUGH COUNCIL,28355,Green Space                   ,Repairs and Maintenance       ,28-Sep-2023,EUROTRUCK MIDLANDS LTD                  ,294.00,Oct-23
EREWASH BOROUGH COUNCIL,27702,Green Space                   ,Repairs and Maintenance       ,05-Sep-2023,EUROTRUCK MIDLANDS LTD                  ,268.00,Oct-23
EREWASH BOROUGH COUNCIL,28694,Household Waste Collection    ,Road Taxes                    ,17-Oct-2023,POST OFFICE,900.00,Oct-23
EREWASH BOROUGH COUNCIL,28694,Kerbside Recycling Collection ,Road Taxes                    ,17-Oct-2023,POST OFFICE,450.00,Oct-23
EREWASH BOROUGH COUNCIL,28694,Green Space                   ,Road Taxes                    ,17-Oct-2023,POST OFFICE,640.00,Oct-23
EREWASH BOROUGH COUNCIL,28694,Street Scene                  ,Road Taxes                    ,17-Oct-2023,POST OFFICE,320.00,Oct-23
EREWASH BOROUGH COUNCIL,28282,Household Waste Collection    ,Tyres                         ,30-Sep-2023,LODGE TYRE COMPANY LTD                  ,"6,232.10",Oct-23
EREWASH BOROUGH COUNCIL,28282,Green Space                   ,Tyres                         ,30-Sep-2023,LODGE TYRE COMPANY LTD                  ,522.60,Oct-23
EREWASH BOROUGH COUNCIL,28282,Street Scene                  ,Tyres                         ,30-Sep-2023,LODGE TYRE COMPANY LTD                  ,"1,104.10",Oct-23
EREWASH BOROUGH COUNCIL,28510,Development Control           ,Planning Fees                 ,09-Oct-2023,PORTALPLANQUEST LTD                     ,462.00,Oct-23
EREWASH BOROUGH COUNCIL,28017,Toll Bar House                ,PPM Mechanical and Equipment  ,19-Sep-2023,MDB PLUMBING (NOTTM) LTD                ,284.32,Oct-23
EREWASH BOROUGH COUNCIL,27970,Toll Bar House                ,Electricity                   ,11-Sep-2023,TOTALENERGIES GAS & POWER LTD           ,893.13,Oct-23
EREWASH BOROUGH COUNCIL,29286,Non Domestic Rates Retention  ,NNDR Tariff                   ,19-Oct-2023,DERBY CITY COUNCIL                      ,"531,923.64",Oct-23
EREWASH BOROUGH COUNCIL,28044,Toll Bar House                ,Metered Water                 ,12-Sep-2023,ANGLIAN WATER BUSINESS (NATIONAL)       ,"1,196.09",Oct-23
